fUST/lending_fUST_20250910
["ID","MTS","AMOUNT","RATE_DAILY","PERIOD"]
[384553523,1757455839789,-290.55623153,0.00013972,2]
[384553525,1757455839798,-480.0,0.00013972,2]
[384553527,1757455839807,-480.0,0.00013972,2]
[384553529,1757455839815,-480.0,0.00013972,2]
[384553531,1757455839824,-480.0,0.00013972,2]
[384553533,1757455839833,-480.0,0.00013972,2]
[384553535,1757455839842,-480.0,0.00013972,2]
[384553537,1757455839851,-480.0,0.00013972,2]
[384553539,1757455839860,-480.0,0.00013972,2]
[384553541,1757455839869,-480.0,0.00013972,2]
[384553543,1757455839880,-606.58,0.00013972,2]
[384553545,1757455839890,-480.0,0.00013972,2]
[384553547,1757455839900,-480.0,0.00013972,2]
[384553549,1757455839910,-480.0,0.00013972,2]
[384553551,1757455839919,-480.0,0.00013972,2]
[384553553,1757455839928,-480.0,0.00013972,2]
[384553555,1757455839937,-480.0,0.00013972,2]
[384553557,1757455839948,-480.0,0.00013972,2]
[384553559,1757455839956,-2305.37,0.00013972,2]
[384553561,1757455839965,-480.0,0.00013972,2]
[384553563,1757455839976,-480.0,0.00013972,2]
[384553565,1757455839986,-1294.61,0.00013972,2]
[384553567,1757455839995,-502.41,0.00013972,2]
[384553569,1757455840004,-480.0,0.00013972,2]
[384553571,1757455840014,-480.0,0.00013972,2]
[384553573,1757455840023,-480.0,0.00013972,2]
[384553574,1757455840034,-414.59,0.00013972,2]
[384553576,1757455840043,-631.98,0.00013972,2]
[384553578,1757455840053,-480.0,0.00013972,2]
[384553580,1757455840063,-480.0,0.00013972,2]
[384553583,1757455840074,-480.0,0.00013972,2]
[384553585,1757455840083,-864.49,0.00013972,2]
[384553586,1757455840093,-480.0,0.00013972,2]
[384553588,1757455840102,-480.0,0.00013972,2]
[384553590,1757455840111,-480.0,0.00013972,2]
[384553592,1757455840121,-480.0,0.00013972,2]
[384553594,1757455840130,-480.0,0.00013972,2]
[384553596,1757455840139,-480.0,0.00013972,2]
[384553599,1757455840149,-480.0,0.00013972,2]
[384553601,1757455840159,-480.0,0.00013972,2]
[384553603,1757455840168,-4252.08,0.00013972,2]
[384553605,1757455840178,-554.67,0.00013972,2]
[384553606,1757455840187,-480.0,0.00013972,2]
[384553608,1757455840197,-480.0,0.00013972,2]
[384553610,1757455840208,-480.0,0.00013972,2]
[384553612,1757455840217,-1063.33,0.00013972,2]
[384553615,1757455840227,-480.0,0.00013972,2]
[384553617,1757455840236,-480.0,0.00013972,2]
[384553618,1757455840245,-480.0,0.00013972,2]
[384553621,1757455840254,-480.0,0.00013972,2]
[384553622,1757455840264,-480.0,0.00013972,2]
[384553624,1757455840273,-480.0,0.00013972,2]
[384553626,1757455840283,-480.0,0.00013972,2]
[384553628,1757455840292,-480.0,0.00013972,2]
[384553630,1757455840302,-480.0,0.00013972,2]
[384553632,1757455840311,-480.0,0.00013972,2]
[384553634,1757455840321,-526.02,0.00013972,2]
[384553636,1757455840333,-480.0,0.00013972,2]
[384553638,1757455840343,-725.58,0.00013972,2]
[384553639,1757455840353,-394.82287055,0.00014192,2]
[384553640,1757455840363,-480.0,0.00014246,2]
[384553641,1757455840372,-480.0,0.00014246,2]
[384553642,1757455840382,-480.0,0.00014246,2]
[384553643,1757455840391,-480.0,0.00014246,2]
[384553644,1757455840401,-480.0,0.00014246,2]
[384553646,1757455840411,-480.0,0.00014246,2]
[384553648,1757455840421,-596.76298755,0.00014246,2]
[384553650,1757455840430,-480.0,0.00014246,2]
[384553652,1757455840440,-480.0,0.00014246,2]
[384553654,1757455840449,-480.0,0.00014246,2]
[384553656,1757455840459,-480.0,0.00014246,2]
[384553658,1757455840468,-480.0,0.00014246,2]
[384553660,1757455840478,-480.0,0.00014246,2]
[384553662,1757455840487,-480.0,0.00014246,2]
[384553664,1757455840496,-480.0,0.00014246,2]
[384553666,1757455840506,-601.79559909,0.00014246,2]
[384553668,1757455840516,-480.0,0.00014246,2]
[384553670,1757455840526,-480.0,0.00014246,2]
[384553672,1757455840535,-225.387382,0.00014246,2]
[384553674,1757455840545,-480.0,0.00014246,2]
[384553676,1757455840554,-606.58,0.00014246,2]
[384553678,1757455840564,-480.0,0.00014246,2]
[384553680,1757455840574,-480.0,0.00014246,2]
[384553682,1757455840583,-480.0,0.00014246,2]
[384553684,1757455840593,-480.0,0.00014246,2]
[384553686,1757455840603,-480.0,0.00014246,2]
[384553688,1757455840612,-480.0,0.00014246,2]
[384553690,1757455840621,-480.0,0.00014246,2]
[384553692,1757455840630,-2305.37,0.00014246,2]
[384553694,1757455840640,-480.0,0.00014246,2]
[384553696,1757455840649,-480.0,0.00014246,2]
[384553698,1757455840658,-1294.61,0.00014246,2]
[384553700,1757455840667,-502.41,0.00014246,2]
[384553702,1757455840676,-480.0,0.00014246,2]
[384553704,1757455840685,-480.0,0.00014246,2]
[384553706,1757455840695,-631.98,0.00014246,2]
[384553709,1757455840704,-480.0,0.00014246,2]
[384553711,1757455840713,-480.0,0.00014246,2]
[384553713,1757455840723,-480.0,0.00014246,2]
[384553714,1757455840732,-864.49,0.00014246,2]
[384553716,1757455840743,-480.0,0.00014246,2]
[384553718,1757455840752,-480.0,0.00014246,2]
[384553720,1757455840762,-480.0,0.00014246,2]
[384553723,1757455840771,-480.0,0.00014246,2]
[384553724,1757455840780,-480.0,0.00014246,2]
[384553727,1757455840790,-480.0,0.00014246,2]
[384553729,1757455840799,-480.0,0.00014246,2]
[384553731,1757455840808,-480.0,0.00014246,2]
[384553733,1757455840818,-4252.08,0.00014246,2]
[384553735,1757455840827,-554.67,0.00014246,2]
[384553737,1757455840836,-480.0,0.00014246,2]
[384553739,1757455840845,-480.0,0.00014246,2]
[384553741,1757455840855,-1063.33,0.00014246,2]
[384553743,1757455840864,-480.0,0.00014246,2]
[384553744,1757455840873,-480.0,0.00014246,2]
[384553746,1757455840883,-480.0,0.00014246,2]
[384553749,1757455840894,-480.0,0.00014246,2]
[384553751,1757455840903,-480.0,0.00014246,2]
[384553752,1757455840913,-480.0,0.00014246,2]
[384553755,1757455840922,-480.0,0.00014246,2]
[384553756,1757455840931,-480.0,0.00014246,2]
[384553758,1757455840941,-480.0,0.00014246,2]
[384553760,1757455840950,-480.0,0.00014246,2]
[384553762,1757455840959,-526.02,0.00014246,2]
[384553764,1757455840969,-480.0,0.00014246,2]
[384553767,1757455840980,-725.58,0.00014246,2]
[384553768,1757455840989,-600.0,0.00014249,2]
[384553771,1757455840999,-183.19,0.00014386,2]
[384553773,1757455841008,-621.87502831,0.0001452,2]
[384553774,1757455841017,-480.0,0.0001452,2]
[384553776,1757455841026,-480.0,0.0001452,2]
[384553778,1757455841036,-480.0,0.0001452,2]
[384553780,1757455841045,-480.0,0.0001452,2]
[384553783,1757455841054,-535.00395857,0.0001452,2]
[384553784,1757455841063,-480.0,0.0001452,2]
[384553786,1757455841072,-480.0,0.0001452,2]
[384553788,1757455841082,-480.0,0.0001452,2]
[384553790,1757455841091,-480.0,0.0001452,2]
[384553792,1757455841100,-480.0,0.0001452,2]
[384553794,1757455841111,-480.0,0.0001452,2]
[384553796,1757455841121,-480.0,0.0001452,2]
[384553799,1757455841130,-480.0,0.0001452,2]
[384553801,1757455841140,-480.0,0.0001452,2]
[384553803,1757455841149,-480.0,0.0001452,2]
[384553805,1757455841158,-480.0,0.0001452,2]
[384553807,1757455841167,-606.58,0.0001452,2]
[384553809,1757455841176,-480.0,0.0001452,2]
[384553811,1757455841185,-480.0,0.0001452,2]
[384553813,1757455841194,-480.0,0.0001452,2]
[384553815,1757455841203,-480.0,0.0001452,2]
[384553816,1757455841213,-480.0,0.0001452,2]
[384553819,1757455841222,-480.0,0.0001452,2]
[384553821,1757455841232,-480.0,0.0001452,2]
[384553823,1757455841241,-2305.37,0.0001452,2]
[384553825,1757455841249,-480.0,0.0001452,2]
[384553827,1757455841259,-1294.61,0.0001452,2]
[384553829,1757455841268,-502.41,0.0001452,2]
[384553831,1757455841277,-480.0,0.0001452,2]
[384553833,1757455841287,-480.0,0.0001452,2]
[384553835,1757455841295,-631.98,0.0001452,2]
[384553837,1757455841305,-480.0,0.0001452,2]
[384553839,1757455841314,-480.0,0.0001452,2]
[384553841,1757455841323,-480.0,0.0001452,2]
[384553843,1757455841332,-864.49,0.0001452,2]
[384553845,1757455841342,-480.0,0.0001452,2]
[384553847,1757455841351,-480.0,0.0001452,2]
[384553849,1757455841360,-480.0,0.0001452,2]
[384553851,1757455841370,-480.0,0.0001452,2]
[384553853,1757455841379,-480.0,0.0001452,2]
[384553855,1757455841389,-480.0,0.0001452,2]
[384553857,1757455841398,-480.0,0.0001452,2]
[384553859,1757455841408,-480.0,0.0001452,2]
[384553861,1757455841418,-4252.08,0.0001452,2]
[384553863,1757455841427,-554.67,0.0001452,2]
[384553865,1757455841436,-480.0,0.0001452,2]
[384553867,1757455841446,-187.83355495,0.0001452,2]
[384553869,1757455841455,-1063.33,0.0001452,2]
[384553871,1757455841465,-480.0,0.0001452,2]
[384553873,1757455841474,-480.0,0.0001452,2]
[384553875,1757455841484,-480.0,0.0001452,2]
[384553877,1757455841493,-480.0,0.0001452,2]
[384553879,1757455841503,-480.0,0.0001452,2]
[384553881,1757455841512,-480.0,0.0001452,2]
[384553883,1757455841521,-480.0,0.0001452,2]
[384553885,1757455841531,-480.0,0.0001452,2]
[384553887,1757455841540,-480.0,0.0001452,2]
[384553889,1757455841549,-480.0,0.0001452,2]
[384553892,1757455841561,-526.02,0.0001452,2]
[384553894,1757455841571,-480.0,0.0001452,2]
[384553896,1757455841580,-725.58,0.0001452,2]
[384553897,1757455841589,-2000.0,0.000147,2]
[384553899,1757455841598,-500.0,0.00014782,2]
[384553901,1757455841607,-500.0,0.00014782,2]
[384553903,1757455841616,-394.82287055,0.00014786,2]
[384553905,1757455841625,-482.26554155,0.00014794,2]
[384553907,1757455841635,-480.0,0.00014794,2]
[384553909,1757455841644,-480.0,0.00014794,2]
[384553911,1757455841654,-449.54331896,0.00014794,2]
[384553914,1757455841663,-480.0,0.00014794,2]
[384553915,1757455841673,-235.50411752,0.00014794,2]
[384553918,1757455841682,-480.0,0.00014794,2]
[384553919,1757455841691,-514.16033741,0.00014794,2]
[384553921,1757455841700,-480.0,0.00014794,2]
[384553924,1757455841710,-480.0,0.00014794,2]
[384553926,1757455841719,-480.0,0.00014794,2]
[384553928,1757455841728,-480.0,0.00014794,2]
[384553930,1757455841737,-480.0,0.00014794,2]
[384553931,1757455841746,-480.0,0.00014794,2]
[384553933,1757455841755,-480.0,0.00014794,2]
[384553935,1757455841764,-480.0,0.00014794,2]
[384553937,1757455841774,-606.58,0.00014794,2]
[384553939,1757455841783,-480.0,0.00014794,2]
[384553942,1757455841792,-480.0,0.00014794,2]
[384553944,1757455841801,-480.0,0.00014794,2]
[384553945,1757455841811,-480.0,0.00014794,2]
[384553948,1757455841820,-256.3053594,0.00014794,2]
[384553950,1757455841829,-480.0,0.00014794,2]
[384553952,1757455841838,-480.0,0.00014794,2]
[384553953,1757455841847,-2305.37,0.00014794,2]
[384553956,1757455841856,-480.0,0.00014794,2]
[384553957,1757455841865,-1294.61,0.00014794,2]
[384553959,1757455841874,-502.41,0.00014794,2]
[384553961,1757455841883,-480.0,0.00014794,2]
[384553963,1757455841893,-480.0,0.00014794,2]
[384553966,1757455841904,-631.98,0.00014794,2]
[384553968,1757455841915,-480.0,0.00014794,2]
[384553970,1757455841924,-480.0,0.00014794,2]
[384553972,1757455841933,-305.01823303,0.00014794,2]
[384553974,1757455841943,-864.49,0.00014794,2]
[384553975,1757455841952,-480.0,0.00014794,2]
[384553977,1757455841961,-480.0,0.00014794,2]
[384553979,1757455841971,-480.0,0.00014794,2]
[384553981,1757455841982,-480.0,0.00014794,2]
[384553983,1757455841991,-480.0,0.00014794,2]
[384553985,1757455842001,-480.0,0.00014794,2]
[384553987,1757455842011,-480.0,0.00014794,2]
[384553989,1757455842020,-480.0,0.00014794,2]
[384553991,1757455842030,-4252.08,0.00014794,2]
[384553993,1757455842039,-554.67,0.00014794,2]
[384553996,1757455842048,-480.0,0.00014794,2]
[384553998,1757455842058,-1063.33,0.00014794,2]
[384554000,1757455842067,-480.0,0.00014794,2]
[384554002,1757455842077,-480.0,0.00014794,2]
[384554004,1757455842087,-480.0,0.00014794,2]
[384554006,1757455842097,-480.0,0.00014794,2]
[384554007,1757455842107,-480.0,0.00014794,2]
[384554010,1757455842116,-480.0,0.00014794,2]
[384554012,1757455842125,-480.0,0.00014794,2]
[384554014,1757455842134,-480.0,0.00014794,2]
[384554016,1757455842143,-480.0,0.00014794,2]
[384554018,1757455842152,-480.0,0.00014794,2]
[384554020,1757455842162,-526.02,0.00014794,2]
[384554022,1757455842171,-480.0,0.00014794,2]
[384554023,1757455842180,-725.58,0.00014794,2]
[384554025,1757455842189,-500.0,0.00014817,2]
[384554028,1757455842198,-500.0,0.00014817,2]
[384554030,1757455842208,-500.0,0.00014817,2]
[384554031,1757455842217,-500.0,0.00014817,2]
[384554032,1757455842226,-500.0,0.00014883,2]
[384554033,1757455842235,-500.0,0.00014883,2]
[384554034,1757455842244,-199.64761663,0.00014884,2]
[384554035,1757455842253,-500.0,0.00014884,2]
[384554036,1757455842262,-500.0,0.00014939,2]
[384554037,1757455842272,-500.0,0.00014939,2]
[384554038,1757455842281,-500.0,0.00014939,2]
[384554039,1757455842290,-427.47,0.00014966,2]
[384554040,1757455842299,-26605.1747333,0.00014968,2]
[384554041,1757455842308,-2082.5059667,0.0001497,2]
[384554042,1757455842317,-960.2467407,0.0001497,2]
[384554043,1757455842326,-11541.5694839,0.0001497,2]
[384554044,1757455842336,-160.0,0.00015,2]
[384554045,1757455842345,-402.0,0.00015008,2]
[384554046,1757455842354,-420.0,0.00015008,2]
[384554047,1757455842363,-500.0,0.0001501,2]
[384554048,1757455842373,-1200.0,0.00015066,2]
[384554049,1757455842382,-480.0,0.00015068,2]
[384554050,1757455842391,-555.8416337,0.00015068,2]
[384554051,1757455842399,-480.0,0.00015068,2]
[384554052,1757455842409,-480.0,0.00015068,2]
[384554053,1757455842418,-480.0,0.00015068,2]
[384554054,1757455842427,-480.0,0.00015068,2]
[384554055,1757455842436,-480.0,0.00015068,2]
[384554057,1757455842446,-480.0,0.00015068,2]
[384554060,1757455842455,-480.0,0.00015068,2]
[384554061,1757455842465,-480.0,0.00015068,2]
[384554063,1757455842474,-480.0,0.00015068,2]
[384554066,1757455842483,-480.0,0.00015068,2]
[384554067,1757455842492,-606.58,0.00015068,2]
[384554070,1757455842501,-480.0,0.00015068,2]
[384554071,1757455842511,-480.0,0.00015068,2]
[384554073,1757455842521,-480.0,0.00015068,2]
[384554076,1757455842530,-480.0,0.00015068,2]
[384554077,1757455842539,-480.0,0.00015068,2]
[384554079,1757455842549,-480.0,0.00015068,2]
[384554081,1757455842558,-2305.37,0.00015068,2]
[384554083,1757455842567,-480.0,0.00015068,2]
[384554084,1757455842576,-1294.61,0.00015068,2]
[384554085,1757455842586,-502.41,0.00015068,2]
[384554086,1757455842595,-480.0,0.00015068,2]
[384554087,1757455842605,-480.0,0.00015068,2]
[384554088,1757455842614,-631.98,0.00015068,2]
[384554089,1757455842623,-480.0,0.00015068,2]
[384554090,1757455842632,-480.0,0.00015068,2]
[384554091,1757455842642,-864.49,0.00015068,2]
[384554092,1757455842651,-480.0,0.00015068,2]
[384554093,1757455842661,-480.0,0.00015068,2]
[384554102,1757455842670,-480.0,0.00015068,2]
[384554104,1757455842797,-480.0,0.00015068,2]
[384554106,1757455842808,-480.0,0.00015068,2]
[384554108,1757455842818,-480.0,0.00015068,2]
[384554110,1757455842828,-480.0,0.00015068,2]
[384554112,1757455842837,-480.0,0.00015068,2]
[384554114,1757455842847,-4252.08,0.00015068,2]
[384554116,1757455842856,-554.67,0.00015068,2]
[384554118,1757455842866,-480.0,0.00015068,2]
[384554120,1757455842875,-1063.33,0.00015068,2]
[384554122,1757455842884,-480.0,0.00015068,2]
[384554124,1757455842894,-480.0,0.00015068,2]
[384554126,1757455842905,-480.0,0.00015068,2]
[384554128,1757455842916,-480.0,0.00015068,2]
[384554130,1757455842926,-480.0,0.00015068,2]
[384554132,1757455842936,-390.88599029,0.00015068,2]
[384554135,1757455842945,-480.0,0.00015068,2]
[384554136,1757455842956,-480.0,0.00015068,2]
[384554137,1757455842965,-480.0,0.00015068,2]
[384554138,1757455842976,-480.0,0.00015068,2]
[384554139,1757455842986,-526.02,0.00015068,2]
[384554140,1757455842996,-480.0,0.00015068,2]
[384554141,1757455843006,-725.58,0.00015068,2]
[384554142,1757455843015,-178.659205,0.00015068,2]
[384554143,1757455843025,-500.0,0.00015273,2]
[384554144,1757455843035,-500.41529121,0.00015273,2]
[384554145,1757455843045,-151.0,0.00015306,2]
[384554146,1757455843055,-151.0,0.00015306,2]
[384554147,1757455843064,-165.3887985,0.00015306,2]
[384554148,1757455843074,-1000.0,0.0001533,2]
[384554149,1757455843084,-160.0,0.00015334,2]
[384554150,1757455843093,-846.80158213,0.00015334,2]
[384554151,1757455843103,-217.65034598,0.00015334,2]
[384554152,1757455843113,-160.0,0.00015334,2]
[384554153,1757455843123,-233.05759179,0.00015334,2]
[384554154,1757455843132,-203.28455737,0.00015334,2]
[384554155,1757455843142,-530.79566296,0.00015334,2]
[384554157,1757455843151,-417.15472785,0.00015334,2]
[384554159,1757455843161,-160.0,0.00015334,2]
[384554161,1757455843170,-480.0,0.00015342,2]
[384554163,1757455843180,-480.0,0.00015342,2]
[384554164,1757455843189,-480.0,0.00015342,2]
[384554165,1757455843199,-309.03355887,0.00015342,2]
[384554166,1757455843209,-479.34035736,0.00015342,2]
[384554167,1757455843218,-480.0,0.00015342,2]
[384554168,1757455843228,-480.0,0.00015342,2]
[384554169,1757455843237,-480.0,0.00015342,2]
[384554170,1757455843247,-385.58,0.00015342,2]
[384554171,1757455843256,-480.0,0.00015342,2]
[384554172,1757455843266,-480.0,0.00015342,2]
[384554173,1757455843275,-606.58,0.00015342,2]
[384554174,1757455843284,-480.0,0.00015342,2]
[384554175,1757455843294,-480.0,0.00015342,2]
[384554176,1757455843303,-480.0,0.00015342,2]
[384554177,1757455843312,-480.0,0.00015342,2]
[384554178,1757455843321,-480.0,0.00015342,2]
[384554179,1757455843331,-480.0,0.00015342,2]
[384554180,1757455843340,-2305.37,0.00015342,2]
[384554181,1757455843350,-480.0,0.00015342,2]
[384554182,1757455843359,-1294.61,0.00015342,2]
[384554183,1757455843368,-502.41,0.00015342,2]
[384554184,1757455843378,-480.0,0.00015342,2]
[384554185,1757455843387,-480.0,0.00015342,2]
[384554186,1757455843396,-631.98,0.00015342,2]
[384554187,1757455843406,-480.0,0.00015342,2]
[384554188,1757455843415,-480.0,0.00015342,2]
[384554189,1757455843424,-864.49,0.00015342,2]
[384554190,1757455843434,-246.28506273,0.00015342,2]
[384554191,1757455843444,-480.0,0.00015342,2]
[384554193,1757455843454,-480.0,0.00015342,2]
[384554195,1757455843463,-480.0,0.00015342,2]
[384554196,1757455843473,-480.0,0.00015342,2]
[384554197,1757455843483,-480.0,0.00015342,2]
[384554198,1757455843492,-480.0,0.00015342,2]
[384554199,1757455843501,-480.0,0.00015342,2]
[384554200,1757455843510,-4252.08,0.00015342,2]
[384554201,1757455843520,-554.67,0.00015342,2]
[384554202,1757455843530,-480.0,0.00015342,2]
[384554203,1757455843541,-1063.33,0.00015342,2]
[384554204,1757455843550,-480.0,0.00015342,2]
[384554205,1757455843560,-480.0,0.00015342,2]
[384554206,1757455843569,-480.0,0.00015342,2]
[384554207,1757455843579,-480.0,0.00015342,2]
[384554208,1757455843588,-480.0,0.00015342,2]
[384554209,1757455843598,-480.0,0.00015342,2]
[384554210,1757455843608,-480.0,0.00015342,2]
[384554211,1757455843617,-480.0,0.00015342,2]
[384554212,1757455843627,-480.0,0.00015342,2]
[384554213,1757455843636,-526.02,0.00015342,2]
[384554214,1757455843646,-725.58,0.00015342,2]
[384554215,1757455843656,-394.82287055,0.00015379,2]
[384554216,1757455843666,-500.0,0.00015487,2]
[384554217,1757455843675,-212.86429237,0.00015616,2]
[384554218,1757455843684,-480.0,0.00015616,2]
[384554219,1757455843694,-480.0,0.00015616,2]
[384554220,1757455843703,-480.0,0.00015616,2]
[384554221,1757455843712,-480.0,0.00015616,2]
[384554222,1757455843721,-480.0,0.00015616,2]
[384554223,1757455843731,-480.0,0.00015616,2]
[384554224,1757455843740,-480.0,0.00015616,2]
[384554225,1757455843749,-606.58,0.00015616,2]
[384554226,1757455843759,-480.0,0.00015616,2]
[384554227,1757455843768,-480.0,0.00015616,2]
[384554228,1757455843777,-480.0,0.00015616,2]
[384554229,1757455843786,-480.0,0.00015616,2]
[384554230,1757455843795,-480.0,0.00015616,2]
[384554231,1757455843805,-480.0,0.00015616,2]
[384554232,1757455843814,-2305.37,0.00015616,2]
[384554233,1757455843825,-480.0,0.00015616,2]
[384554234,1757455843835,-1294.61,0.00015616,2]
[384554235,1757455843846,-502.41,0.00015616,2]
[384554236,1757455843855,-480.0,0.00015616,2]
[384554237,1757455843864,-480.0,0.00015616,2]
[384554238,1757455843874,-631.98,0.00015616,2]
[384554239,1757455843883,-480.0,0.00015616,2]
[384554240,1757455843893,-480.0,0.00015616,2]
[384554241,1757455843906,-864.49,0.00015616,2]
[384554242,1757455843916,-480.0,0.00015616,2]
[384554243,1757455843926,-480.0,0.00015616,2]
[384554244,1757455843935,-480.0,0.00015616,2]
[384554246,1757455843946,-480.0,0.00015616,2]
[384554247,1757455843956,-480.0,0.00015616,2]
[384554248,1757455843966,-480.0,0.00015616,2]
[384554249,1757455843976,-480.0,0.00015616,2]
[384554250,1757455843986,-4252.08,0.00015616,2]
[384554251,1757455843997,-554.67,0.00015616,2]
[384554252,1757455844007,-480.0,0.00015616,2]
[384554253,1757455844016,-1063.33,0.00015616,2]
[384554254,1757455844026,-480.0,0.00015616,2]
[384554255,1757455844036,-480.0,0.00015616,2]
[384554256,1757455844046,-480.0,0.00015616,2]
[384554257,1757455844055,-480.0,0.00015616,2]
[384554258,1757455844065,-480.0,0.00015616,2]
[384554259,1757455844077,-480.0,0.00015616,2]
[384554260,1757455844087,-480.0,0.00015616,2]
[384554261,1757455844096,-480.0,0.00015616,2]
[384554262,1757455844106,-480.0,0.00015616,2]
[384554263,1757455844115,-526.02,0.00015616,2]
[384554264,1757455844125,-513.12403167,0.00015637,7]
[384554265,1757455844134,-720.0,0.00015674,2]
[384554266,1757455844144,-1500.0,0.00015878,2]
[384554267,1757455844153,-480.0,0.0001589,2]
[384554268,1757455844163,-610.65585767,0.0001589,2]
[384554269,1757455844172,-480.0,0.0001589,2]
[384554270,1757455844181,-480.0,0.0001589,2]
[384554271,1757455844190,-480.0,0.0001589,2]
[384554272,1757455844199,-480.0,0.0001589,2]
[384554273,1757455844208,-606.58,0.0001589,2]
[384554274,1757455844218,-480.0,0.0001589,2]
[384554275,1757455844227,-480.0,0.0001589,2]
[384554276,1757455844236,-480.0,0.0001589,2]
[384554277,1757455844245,-480.0,0.0001589,2]
[384554278,1757455844254,-480.0,0.0001589,2]
[384554279,1757455844263,-480.0,0.0001589,2]
[384554280,1757455844273,-2305.37,0.0001589,2]
[384554281,1757455844282,-480.0,0.0001589,2]
[384554282,1757455844291,-1294.61,0.0001589,2]
[384554283,1757455844301,-502.41,0.0001589,2]
[384554284,1757455844310,-627.03859519,0.0001589,2]
[384554285,1757455844320,-480.0,0.0001589,2]
[384554286,1757455844330,-631.98,0.0001589,2]
[384554287,1757455844340,-480.0,0.0001589,2]
[384554288,1757455844349,-480.0,0.0001589,2]
[384554289,1757455844359,-864.49,0.0001589,2]
[384554290,1757455844369,-480.0,0.0001589,2]
[384554291,1757455844379,-480.0,0.0001589,2]
[384554292,1757455844389,-480.0,0.0001589,2]
[384554293,1757455844399,-480.0,0.0001589,2]
[384554294,1757455844408,-204.18705507,0.0001589,2]
[384554295,1757455844418,-480.0,0.0001589,2]
[384554296,1757455844427,-480.0,0.0001589,2]
[384554297,1757455844437,-4252.08,0.0001589,2]
[384554298,1757455844447,-554.67,0.0001589,2]
[384554299,1757455844458,-480.0,0.0001589,2]
[384554300,1757455844467,-1063.33,0.0001589,2]
[384554301,1757455844477,-480.0,0.0001589,2]
[384554302,1757455844487,-480.0,0.0001589,2]
[384554303,1757455844496,-480.0,0.0001589,2]
[384554304,1757455844506,-480.0,0.0001589,2]
[384554305,1757455844515,-480.0,0.0001589,2]
[384554306,1757455844525,-480.0,0.0001589,2]
[384554307,1757455844534,-480.0,0.0001589,2]
[384554308,1757455844544,-480.0,0.0001589,2]
[384554309,1757455844554,-480.0,0.0001589,2]
[384554310,1757455844564,-526.02,0.0001589,2]
[384554311,1757455844573,-394.82287055,0.00015973,2]
[384554312,1757455844583,-172.4555,0.00016064,2]
[384554313,1757455844593,-179.368217,0.00016064,2]
[384554314,1757455844603,-291.155911,0.00016064,2]
[384554315,1757455844613,-151.0,0.00016064,2]
[384554316,1757455844624,-151.0,0.00016064,2]
[384554317,1757455844634,-154.424043,0.00016064,2]
[384554318,1757455844645,-151.0,0.00016064,2]
[384554319,1757455844656,-151.0,0.00016064,2]